[Event "22nd OIBM 2018"]
[Site "Gmund am Tegernsee"]
[Date "2018.10.30"]
[Round "4"]
[White "Weber, Ulrich"]
[Black "Juergens, Klaus"]
[Result "1-0"]
[ECO "A05"]
[WhiteElo "2347"]
[BlackElo "2149"]
[Annotator "NA"]
[PlyCount "77"]
[EventDate "2018.10.27"]
[EventType "swiss"]
[EventCountry "GER"]
[SourceTitle "playchess.com"]
[Source "ChessBase"]
[SourceQuality "1"]
[TimeControl "40/5400+30:1800+30"]

1. Nf3 {[%emt 0:00:00]} Nf6 {[%emt 0:00:00]} 2. g3 {[%emt 0:00:00]} g6 {[%emt 0:00:00]} 3. Bg2 {[%emt 0:00:00]} Bg7 {[%emt 0:00:08]} 4. d4 {[%emt 0:00:00]} O-O {[%emt 0:00:13]} 5. O-O {[%emt 0:00:00]} d6 {[%emt 0:00:12]} 6. Re1 {[%emt 0:00:00]} Nbd7 {[%emt 0:00:25]} 7. e4 {[%emt 0:00:03]} e5 {[%emt 0:00:21]} 8. h3 {[%emt 0:01:09] A49: 1 d4 Nf6 2 Nf3 g6 3 g3: Anti-King's Indian systems} (8. Nc3 Re8 9. h3 c6 10. a4 b6 11. Bg5 Bb7 12. Qd2 Qc7 13. Rad1 a6 14. dxe5 dxe5 15. Qd6 Qxd6 16. Rxd6 h6 17. Bxf6 Nxf6 18. Nd2 {½-½ (80) Kramnik,V (2792)-Grischuk,A (2766) Paris 2018}) 8... c6 {[%emt 0:01:38]} 9. a4 {[%emt 0:00:16]} b6 $146 {[%emt 0:01:15]} ({Predecessor:} 9... a5 10. Na3 exd4 11. Nxd4 Nc5 12. Nb1 d5 13. exd5 Nxd5 14. Nc3 Nxc3 15. bxc3 Re8 {0-1 (44) Abdulla,A (2503)-Atabayev,S (2422) Chengdu 2017}) 10. c4 {[%emt 0:06:57]} Qc7 {[%emt 0:03:16]} 11. Nc3 {[%emt 0:02:24]} Bb7 {[%emt 0:04:58]} 12. b3 {[%emt 0:07:09]} Rfe8 {[%emt 0:10:24]} 13. Bb2 {[%emt 0:04:21]} exd4 {[%emt 0:02:25]} 14. Nxd4 {[%emt 0:00:11]} Nc5 {[%emt 0:00:47]} 15. Qc2 {[%emt 0:01:46]} Ne6 {[%emt 0:08:20]} 16. Nf3 {[%emt 0:17:33]} Nd7 {[%emt 0:05:06]} 17. Rad1 {[%emt 0:03:31]} Ne5 {[%emt 0:01:04]} 18. Nh2 {[%emt 0:01:51]} Rad8 {[%emt 0:10:05]} 19. Rd2 {[%emt 0:15:19]} Qb8 {[%emt 0:15:26]} 20. f4 {[%emt 0:03:16]} Nd7 {[%emt 0:00:35]} 21. Red1 {[%emt 0:00:37]} Ndc5 {[%emt 0:03:59]} 22. Ne2 {[%emt 0:03:35]} a5 {[%emt 0:10:00]} 23. Bxg7 {[%emt 0:01:17]} Kxg7 {[%emt 0:01:19]} 24. Ng4 {[%emt 0:03:00]} f6 {[%emt 0:00:58]} 25. Qb2 {[%emt 0:01:07]} Rf8 {[%emt 0:00:51]} 26. h4 {[%emt 0:06:29]} h5 {[%emt 0:01:53]} 27. Ne3 {[%emt 0:00:36]} Kf7 {[%emt 0:01:27]} 28. f5 {[%emt 0:01:05]} Ng7 {[%emt 0:01:00]} 29. fxg6+ {[%emt 0:03:22]} Kxg6 {[%emt 0:00:08]} 30. Qc2 {[%emt 0:03:26]} Kf7 {[%emt 0:01:59]} 31. Nd4 {[%emt 0:00:52]} Nce6 {[%emt 0:06:15]} 32. Ndf5 {[%emt 0:01:58]} Ne8 {[%emt 0:00:37]} 33. Qd3 {[%emt 0:02:59]} Bc8 {[%emt 0:02:18]} 34. Qe2 {[%emt 0:00:12]} Rh8 {[%emt 0:01:13]} 35. Qf2 {[%emt 0:03:07]} N8g7 $18 {[%emt 0:00:44]} (35... Qc7 36. g4 hxg4 37. Nxg4 Nc5) 36. Nxd6+ {[%emt 0:00:27]} Ke7 {[%emt 0:00:59]} 37. e5 {[%emt 0:01:28]} Rdf8 {[%emt 0:01:12]} 38. Nxc8+ {[%emt 0:01:01]} Qxc8 {[%emt 0:00:16]} 39. exf6+ {[%emt 0:00:14]} 1-0

[Event "22nd OIBM 2018"]
[Site "Gmund am Tegernsee"]
[Date "2018.10.30"]
[Round "4"]
[White "Schnepp, Gunnar"]
[Black "Ditter, Juergen"]
[Result "1-0"]
[ECO "A31"]
[WhiteElo "2320"]
[BlackElo "2131"]
[Annotator "ChessBase"]
[PlyCount "39"]
[EventDate "2018.10.27"]
[EventType "swiss"]
[EventCountry "GER"]
[SourceTitle "playchess.com"]
[Source "ChessBase"]
[SourceQuality "1"]
[TimeControl "40/5400+30:1800+30"]

1. Nf3 {[%emt 0:00:00]} Nf6 {[%emt 0:00:00]} 2. c4 {[%emt 0:00:00]} c5 {[%emt 0:00:03]} 3. d4 {[%emt 0:00:06]} e6 {[%emt 0:01:14]} 4. g3 {[%emt 0:01:30]} d5 {[%emt 0:01:06]} 5. cxd5 {[%emt 0:00:24]} exd5 {[%emt 0:00:21]} 6. Bg2 {[%emt 0:00:10]} Nc6 {[%emt 0:00:19]} 7. O-O {[%emt 0:00:14]} Be6 {[%emt 0:03:04]} 8. Nc3 {[%emt 0:02:56]} Be7 {[%emt 0:01:33]} 9. dxc5 {[%emt 0:03:15]} Bxc5 {[%emt 0:00:30]} 10. Ng5 {[%emt 0:00:59]} O-O {[%emt 0:05:24]} 11. Bf4 {[%emt 0:05:11]} Qd7 {[%emt 0:10:26]} 12. Rc1 {[%emt 0:03:07]} Be7 {[%emt 0:02:01]} 13. Nxe6 {[%emt 0:14:54]} fxe6 {[%emt 0:04:29]} 14. e4 {[%emt 0:00:18]} d4 {[%emt 0:07:28]} 15. e5 {[%emt 0:02:33]} Nd5 {[%emt 0:04:36]} 16. Nxd5 {[%emt 0:03:38]} exd5 {[%emt 0:00:12]} 17. Qb3 {[%emt 0:01:08]} Rad8 {[%emt 0:01:30]} 18. e6 {[%emt 0:01:46]} Qxe6 {[%emt 0:13:28]} 19. Qxb7 {[%emt 0:02:11]} Na5 {[%emt 0:00:15]} 20. Qxa7 1-0

[Event "22nd OIBM 2018"]
[Site "Gmund am Tegernsee"]
[Date "2018.10.30"]
[Round "4"]
[White "Welling, Gerard"]
[Black "Koelle, Tobias"]
[Result "1-0"]
[ECO "C26"]
[WhiteElo "2297"]
[BlackElo "2125"]
[Annotator "NA"]
[PlyCount "103"]
[EventDate "2018.10.27"]
[EventType "swiss"]
[EventCountry "GER"]
[SourceTitle "playchess.com"]
[Source "ChessBase"]
[SourceQuality "1"]
[TimeControl "40/5400+30:1800+30"]

1. e4 {[%emt 0:00:00]} e5 {[%emt 0:00:00]} 2. Nc3 {[%emt 0:00:23]} Nf6 {[%emt 0:00:00]} 3. Bc4 {[%emt 0:01:37]} Bc5 {[%emt 0:00:15]} 4. d3 {[%emt 0:00:24]} c6 {[%emt 0:00:05]} 5. Qf3 {[%emt 0:03:30]} O-O {[%emt 0:08:32]} 6. Bg5 {[%emt 0:04:30]} h6 $146 {[%emt 0:04:05] C27: Vienna Game: 2...Nf6 3 Bc4 Nxe4} ({Predecessor:} 6... Be7 7. Nge2 d6 8. h3 b5 9. Bb3 Nbd7 10. O-O Nc5 11. d4 Ne6 12. Be3 b4 13. dxe5 dxe5 14. Nb1 {½-½ (52) Ibragimov,I (2585)-Altounian,L (2456) San Diego 2004}) 7. Bxf6 {[%emt 0:00:50]} Qxf6 {[%emt 0:00:30]} 8. Qxf6 {[%emt 0:00:04]} gxf6 {[%emt 0:00:07]} 9. Nge2 {[%emt 0:01:10]} b5 {[%emt 0:07:14]} 10. Bb3 {[%emt 0:00:10]} a5 {[%emt 0:00:31]} 11. a4 {[%emt 0:01:32]} b4 {[%emt 0:00:22]} 12. Nd1 {[%emt 0:01:05]} d6 {[%emt 0:14:56]} 13. Ng3 {[%emt 0:09:06]} Be6 {[%emt 0:00:49]} 14. Ne3 {[%emt 0:04:22]} Bxe3 {[%emt 0:07:27]} 15. fxe3 {[%emt 0:00:04]} Nd7 {[%emt 0:00:41]} 16. O-O {[%emt 0:04:12]} Kg7 {[%emt 0:09:02]} 17. d4 {[%emt 0:01:33]} exd4 {[%emt 0:04:36]} 18. exd4 {[%emt 0:00:25]} d5 {[%emt 0:01:42]} 19. exd5 {[%emt 0:00:46]} cxd5 {[%emt 0:01:16]} 20. Nf5+ {[%emt 0:02:56]} Kh7 {[%emt 0:04:53]} 21. Ne7 {[%emt 0:04:21]} Nb6 {[%emt 0:04:24]} 22. Rxf6 {[%emt 0:00:08]} Kg7 {[%emt 0:04:19]} 23. Raf1 {[%emt 0:01:01]} Rfe8 {[%emt 0:03:55]} 24. Nc6 {[%emt 0:00:29]} Nd7 {[%emt 0:00:31]} 25. R6f3 {[%emt 0:01:01]} Ra6 {[%emt 0:00:19]} 26. Ne5 {[%emt 0:00:20]} Nxe5 {[%emt 0:00:06]} 27. dxe5 {[%emt 0:00:04]} Rc6 {[%emt 0:01:17]} 28. Rg3+ {[%emt 0:03:06]} Kf8 {[%emt 0:01:05]} 29. Rf6 {[%emt 0:00:30]} Rec8 {[%emt 0:06:46]} 30. Rxh6 {[%emt 0:05:58]} Rxc2 {[%emt 0:00:59]} 31. Bxc2 {[%emt 0:07:35]} Rxc2 {[%emt 0:00:03]} 32. Rh8+ {[%emt 0:00:21]} Ke7 {[%emt 0:00:01]} 33. b3 {[%emt 0:00:14]} d4 {[%emt 0:01:40]} 34. Ra8 {[%emt 0:01:26]} Rc3 {[%emt 0:02:17]} 35. Ra7+ {[%emt 0:00:06]} Kf8 {[%emt 0:00:08]} 36. Kf2 {[%emt 0:06:58]} (36. Rxa5 $18 Bxb3 37. Rg4) 36... Bxb3 {[%emt 0:02:41]} 37. Rxa5 {[%emt 0:02:00]} Bc2 $2 {[%emt 0:02:21]} (37... Bc4 $11) 38. Rb5 {[%emt 0:01:51]} b3 {[%emt 0:02:37]} 39. a5 {[%emt 0:03:31]} d3 {[%emt 0:01:01]} 40. Ke3 {[%emt 0:00:35]} Rc4 {[%emt 0:01:23]} 41. Kd2 {[%emt 0:30:27]} Ra4 {[%emt 0:32:00]} 42. Rxd3 {[%emt 0:01:04]} Bxd3 {[%emt 0:00:07]} 43. Kxd3 {[%emt 0:00:02]} Ra2 {[%emt 0:00:30]} 44. Kc3 {[%emt 0:02:34]} Rxg2 {[%emt 0:01:42]} 45. Kxb3 {[%emt 0:00:01]} Rg1 {[%emt 0:00:42]} 46. Kb4 {[%emt 0:00:12]} Ra1 {[%emt 0:00:22]} 47. Kc5 {[%emt 0:00:05]} Ke7 {[%emt 0:00:20]} 48. Kb6 {[%emt 0:00:08]} f6 {[%emt 0:00:17]} 49. a6 {[%emt 0:01:22]} fxe5 {[%emt 0:00:07]} 50. a7 {[%emt 0:00:03]} e4 $18 {[%emt 0:00:08]} 51. Ra5 {[%emt 0:00:48]} Rb1+ {[%emt 0:00:06]} 52. Ka6 {[%emt 0:00:02]} 1-0

[Event "22nd OIBM 2018"]
[Site "Gmund am Tegernsee"]
[Date "2018.10.30"]
[Round "4"]
[White "Wintzer, Joachim"]
[Black "Astengo, Corrado"]
[Result "1-0"]
[ECO "A14"]
[WhiteElo "2260"]
[BlackElo "2114"]
[Annotator "ChessBase"]
[PlyCount "65"]
[EventDate "2018.10.27"]
[EventType "swiss"]
[EventCountry "GER"]
[SourceTitle "playchess.com"]
[Source "ChessBase"]
[SourceQuality "1"]
[TimeControl "40/5400+30:1800+30"]

1. Nf3 {[%emt 0:00:00]} d5 {[%emt 0:00:00]} 2. g3 {[%emt 0:00:06]} Nf6 {[%emt 0:00:04]} 3. Bg2 {[%emt 0:00:15]} e6 {[%emt 0:00:25]} 4. c4 {[%emt 0:03:35]} Be7 {[%emt 0:00:16]} 5. O-O {[%emt 0:00:34]} O-O {[%emt 0:00:07]} 6. b3 {[%emt 0:00:19]} d4 {[%emt 0:02:21]} 7. e3 {[%emt 0:00:59]} Nc6 {[%emt 0:01:07]} 8. d3 {[%emt 0:04:55]} e5 {[%emt 0:04:30]} 9. exd4 {[%emt 0:00:45]} exd4 {[%emt 0:01:08]} 10. Bb2 {[%emt 0:04:09]} Bf5 {[%emt 0:02:19]} 11. Na3 {[%emt 0:02:19]} Qd7 {[%emt 0:02:34]} 12. Nc2 {[%emt 0:05:31]} Bc5 {[%emt 0:00:52]} 13. b4 {[%emt 0:26:55]} Nxb4 {[%emt 0:03:08]} 14. Nxb4 {[%emt 0:00:18]} Bxb4 {[%emt 0:00:02]} 15. Nxd4 {[%emt 0:01:20]} Bg4 {[%emt 0:14:38]} 16. Bf3 {[%emt 0:01:38]} Rad8 {[%emt 0:10:37]} 17. Nc2 Be7 {[%emt 0:04:28]} 18. d4 {[%emt 0:05:46]} c6 {[%emt 0:07:36]} 19. Ne3 {[%emt 0:02:17]} Bh3 {[%emt 0:07:04]} 20. Re1 {[%emt 0:00:25]} Rfe8 {[%emt 0:02:59]} 21. Qb3 {[%emt 0:04:26]} Be6 {[%emt 0:05:26]} 22. Rad1 {[%emt 0:00:43]} Qc7 {[%emt 0:05:10]} 23. d5 {[%emt 0:03:27]} cxd5 {[%emt 0:02:13]} 24. cxd5 {[%emt 0:00:08]} Bc8 {[%emt 0:00:14]} 25. Nc4 {[%emt 0:06:07]} Bd6 {[%emt 0:02:01]} 26. Nxd6 {[%emt 0:04:41]} Qxd6 {[%emt 0:01:05]} 27. Ba3 {[%emt 0:00:22]} Qa6 {[%emt 0:00:51]} 28. Be7 {[%emt 0:01:41]} Qa5 {[%emt 0:03:28]} 29. Re3 {[%emt 0:03:42]} Ng4 {[%emt 0:05:24]} 30. Bxd8 {[%emt 0:01:05]} Rxd8 {[%emt 0:00:54]} 31. Bxg4 {[%emt 0:02:55]} Bxg4 {[%emt 0:00:05]} 32. Rde1 {[%emt 0:00:23]} Bd7 {[%emt 0:02:18]} 33. Qxb7 {[%emt 0:00:33]} 1-0

[Event "22nd OIBM 2018"]
[Site "Gmund am Tegernsee"]
[Date "2018.10.30"]
[Round "4"]
[White "Zeier, Klaus"]
[Black "Semprun Martinez, Fernando"]
[Result "1-0"]
[ECO "C96"]
[WhiteElo "2228"]
[BlackElo "2102"]
[Annotator "NA"]
[PlyCount "69"]
[EventDate "2018.10.27"]
[EventType "swiss"]
[EventCountry "GER"]
[SourceTitle "playchess.com"]
[Source "ChessBase"]
[SourceQuality "1"]
[TimeControl "40/5400+30:1800+30"]

1. e4 {[%emt 0:00:00]} e5 {[%emt 0:00:00]} 2. Nf3 {[%emt 0:00:00]} Nc6 {[%emt 0:00:00]} 3. Bb5 {[%emt 0:00:00]} a6 {[%emt 0:00:00]} 4. Ba4 {[%emt 0:00:00]} Nf6 {[%emt 0:00:02]} 5. O-O {[%emt 0:00:14]} Be7 {[%emt 0:00:10]} 6. Re1 {[%emt 0:00:08]} b5 {[%emt 0:00:05]} 7. Bb3 {[%emt 0:00:05]} d6 {[%emt 0:00:04]} 8. c3 {[%emt 0:00:15]} O-O {[%emt 0:00:06]} 9. h3 {[%emt 0:00:13]} Na5 {[%emt 0:00:14]} 10. Bc2 {[%emt 0:00:12]} c5 {[%emt 0:00:02]} 11. d4 {[%emt 0:00:17]} Nd7 {[%emt 0:00:07]} 12. Nbd2 {[%emt 0:02:30]} exd4 {[%emt 0:00:06]} 13. cxd4 {[%emt 0:00:19]} Nc6 {[%emt 0:00:01]} 14. d5 {[%emt 0:09:38]} Nce5 {[%emt 0:00:01]} 15. a4 {[%emt 0:01:27]} Bb7 {[%emt 0:00:02]} 16. Nxe5 {[%emt 0:18:27]} Nxe5 {[%emt 0:00:03]} 17. f4 {[%emt 0:00:25]} Ng6 {[%emt 0:00:01]} 18. Nf3 {[%emt 0:00:42]} Bf6 {[%emt 0:00:03]} 19. axb5 {[%emt 0:06:48]} axb5 {[%emt 0:01:57]} 20. Rxa8 {[%emt 0:00:03]} Bxa8 {[%emt 0:05:10]} 21. b3 {[%emt 0:12:55]} Nh4 {[%emt 0:20:22]} 22. e5 {[%emt 0:19:29]} Be7 {[%emt 0:37:17]} ({Better is} 22... dxe5 $11 23. fxe5 Nxf3+ 24. gxf3 Bh4) 23. Nxh4 {[%emt 0:06:52]} Bxh4 {[%emt 0:00:16]} 24. Qd3 {[%emt 0:00:13]} g6 {[%emt 0:00:57]} 25. Rd1 {[%emt 0:00:20]} dxe5 {[%emt 0:06:13]} 26. fxe5 {[%emt 0:01:11]} Bg5 {[%emt 0:02:06]} 27. Bb2 {[%emt 0:01:20]} Qb6 {[%emt 0:03:48]} 28. Qg3 {[%emt 0:00:19]} Qd8 {[%emt 0:09:15]} 29. Qc3 {[%emt 0:02:24]} Qe7 {[%emt 0:06:15] [#]} 30. e6 $1 {[%emt 0:03:11]} f6 {[%emt 0:00:32]} 31. Qg3 {[%emt 0:00:31]} Rd8 {[%emt 0:03:43]} 32. Be4 {[%emt 0:03:10]} Qd6 {[%emt 0:03:55]} 33. Qxd6 $18 {[%emt 0:01:25]} Rxd6 {[%emt 0:00:01]} 34. Ra1 {[%emt 0:01:12]} Bxd5 {[%emt 0:02:43]} 35. Bxd5 {[%emt 0:00:16]} 1-0

[Event "22nd OIBM 2018"]
[Site "Gmund am Tegernsee"]
[Date "2018.10.30"]
[Round "4"]
[White "Schaefer, Michael"]
[Black "Oparaugo, Thomas"]
[Result "1/2-1/2"]
[ECO "D04"]
[WhiteElo "2185"]
[BlackElo "2052"]
[Annotator "NA"]
[PlyCount "58"]
[EventDate "2018.10.27"]
[EventType "swiss"]
[EventCountry "GER"]
[SourceTitle "playchess.com"]
[Source "ChessBase"]
[SourceQuality "1"]
[TimeControl "40/5400+30:1800+30"]

1. d4 {[%emt 0:00:00]} Nf6 {[%emt 0:05:56]} 2. Nf3 {[%emt 0:00:00]} d5 {[%emt 0:00:26]} 3. e3 {[%emt 0:00:00]} c5 {[%emt 0:02:43]} 4. Bd3 {[%emt 0:06:55]} Bg4 {[%emt 0:08:15]} 5. c3 {[%emt 0:02:09]} Nc6 {[%emt 0:00:45]} 6. Nbd2 {[%emt 0:01:05]} e6 {[%emt 0:01:16]} 7. Qa4 {[%emt 0:01:15] D05: Colle System with ...e6} c4 {[%emt 0:12:04]} 8. Bb1 {[%emt 0:10:17]} a6 {[%emt 0:07:54]} 9. Qd1 $146 {[%emt 0:19:22]} ({Predecessor:} 9. h3 b5 10. Qd1 Bh5 11. e4 Be7 12. e5 Nd7 13. Qe2 b4 14. g4 Bg6 {0-1 (22) Spelec,D (2012)-Farago,I (2491) Graz 2012}) 9... Be7 {[%emt 0:06:39]} 10. e4 {[%emt 0:04:10]} dxe4 11. Nxe4 {[%emt 0:00:36]} Qd5 {[%emt 0:03:56]} 12. Qe2 Qh5 {[%emt 0:11:38]} 13. Ng3 {[%emt 0:10:25]} Bxf3 {[%emt 0:01:01]} 14. Nxh5 {[%emt 0:00:23]} Bxe2 {[%emt 0:00:14]} 15. Nxf6+ {[%emt 0:00:34]} Bxf6 {[%emt 0:00:19]} 16. Kxe2 {[%emt 0:00:07]} O-O-O {[%emt 0:01:29]} 17. Be4 {[%emt 0:03:33]} Ne7 {[%emt 0:05:47]} 18. b3 {[%emt 0:04:54]} cxb3 {[%emt 0:07:39]} 19. axb3 {[%emt 0:00:09]} e5 {[%emt 0:00:17]} 20. dxe5 {[%emt 0:00:57]} Bxe5 {[%emt 0:00:07]} 21. Ra5 {[%emt 0:02:46]} Bc7 {[%emt 0:02:54]} 22. Rc5 {[%emt 0:03:33]} Kb8 {[%emt 0:00:44]} 23. Rd1 {[%emt 0:02:36]} Bd6 {[%emt 0:03:01]} 24. Rc4 {[%emt 0:03:38]} Rhe8 {[%emt 0:01:18]} 25. Rxd6 {[%emt 0:03:01]} Rxd6 {[%emt 0:00:18]} 26. Bf4 $14 {[%emt 0:00:08]} Nc8 {[%emt 0:03:38]} 27. Kf3 {[%emt 0:04:21]} Ka8 {[%emt 0:03:10]} 28. Bxd6 {[%emt 0:03:41]} Nxd6 {[%emt 0:00:19]} 29. Rd4 {[%emt 0:00:28]} Nxe4 {[%emt 0:01:17]} 1/2-1/2

[Event "22nd OIBM 2018"]
[Site "Gmund am Tegernsee"]
[Date "2018.10.30"]
[Round "4"]
[White "Delitzsch, Juergen"]
[Black "Wuest, Klaus"]
[Result "1-0"]
[ECO "D74"]
[WhiteElo "2178"]
[BlackElo "2006"]
[Annotator "ChessBase"]
[PlyCount "96"]
[EventDate "2018.10.27"]
[EventType "swiss"]
[EventCountry "GER"]
[SourceTitle "playchess.com"]
[Source "ChessBase"]
[SourceQuality "1"]
[TimeControl "40/5400+30:1800+30"]

1. d4 {[%emt 0:00:00]} Nf6 {[%emt 0:00:00]} 2. Nf3 {[%emt 0:00:00]} g6 {[%emt 0:00:00]} 3. c4 {[%emt 0:00:07]} Bg7 {[%emt 0:00:00]} 4. g3 {[%emt 0:00:47]} O-O {[%emt 0:00:40]} 5. Bg2 {[%emt 0:00:03]} d5 {[%emt 0:00:32]} 6. cxd5 {[%emt 0:00:48]} Nxd5 {[%emt 0:00:17]} 7. O-O {[%emt 0:00:49]} Nc6 {[%emt 0:08:09]} 8. e4 {[%emt 0:00:59]} Nb6 {[%emt 0:00:08]} 9. d5 {[%emt 0:00:38]} Ne5 {[%emt 0:00:43]} 10. Nxe5 {[%emt 0:00:39]} Bxe5 {[%emt 0:00:07]} 11. Nc3 {[%emt 0:00:09]} e6 {[%emt 0:00:57]} 12. Bh6 {[%emt 0:06:43]} Re8 {[%emt 0:00:58]} 13. Qb3 {[%emt 0:01:11]} exd5 {[%emt 0:08:15]} 14. exd5 {[%emt 0:00:04]} Bd7 {[%emt 0:06:10]} 15. Rad1 {[%emt 0:01:44]} a5 {[%emt 0:03:37]} 16. h4 {[%emt 0:17:46]} a4 {[%emt 0:03:03]} 17. Qc2 {[%emt 0:04:39]} Bf5 {[%emt 0:01:58]} 18. Be4 {[%emt 0:08:33]} Bxe4 19. Nxe4 Nxd5 {[%emt 0:20:40]} 20. Bg5 {[%emt 0:00:19]} Qd7 {[%emt 0:04:06]} 21. Qd2 {[%emt 0:06:29]} c6 {[%emt 0:01:24]} 22. Rfe1 {[%emt 0:11:40]} Qc7 {[%emt 0:03:48]} 23. Qc1 {[%emt 0:00:59]} Qb6 {[%emt 0:02:03]} 24. Re2 {[%emt 0:04:30]} Bg7 {[%emt 0:04:59]} 25. Rde1 {[%emt 0:01:40]} Qb4 {[%emt 0:07:05]} 26. h5 {[%emt 0:05:52]} f5 {[%emt 0:03:13]} 27. a3 {[%emt 0:11:16]} Qf8 {[%emt 0:02:47]} 28. Nc5 {[%emt 0:00:57]} Rxe2 {[%emt 0:01:04]} 29. Rxe2 {[%emt 0:00:03]} Qf7 {[%emt 0:02:02]} 30. h6 {[%emt 0:01:23]} Bf6 {[%emt 0:01:06]} 31. Bxf6 {[%emt 0:01:07]} Nxf6 {[%emt 0:00:22]} 32. Qc3 {[%emt 0:01:44]} Re8 {[%emt 0:01:58]} 33. Rxe8+ {[%emt 0:00:59]} Nxe8 {[%emt 0:00:13]} 34. Qe5 {[%emt 0:01:27]} b5 {[%emt 0:02:23]} 35. Qb8 {[%emt 0:02:57]} Qe7 {[%emt 0:01:25]} 36. Qc8 {[%emt 0:00:50]} Qxc5 {[%emt 0:01:26]} 37. Qxe8+ {[%emt 0:00:06]} Qf8 {[%emt 0:00:22]} 38. Qe6+ {[%emt 0:00:53]} Kh8 {[%emt 0:01:41]} 39. Qxc6 {[%emt 0:00:09]} Qxh6 {[%emt 0:00:30]} 40. Qxb5 {[%emt 0:04:12]} Qc1+ {[%emt 0:00:31]} 41. Kg2 {[%emt 0:31:00]} Qc2 {[%emt 0:30:23]} 42. Qb8+ {[%emt 0:03:10]} Kg7 {[%emt 0:00:18]} 43. Qe5+ {[%emt 0:00:08]} Kf7 {[%emt 0:02:11]} 44. Kg1 {[%emt 0:00:59]} Qc1+ {[%emt 0:00:48]} 45. Kh2 {[%emt 0:00:00]} Qc2 {[%emt 0:00:00]} 46. Qd4 {[%emt 0:00:00]} Kg8 {[%emt 0:00:00]} 47. Kg1 {[%emt 0:00:00]} Qc1+ {[%emt 0:00:00]} 48. Kg2 {[%emt 0:00:00]} Qc2 {[%emt 0:00:00]} 1-0

[Event "22nd OIBM 2018"]
[Site "Gmund am Tegernsee"]
[Date "2018.10.30"]
[Round "4"]
[White "Subramanian, Aditya"]
[Black "Hacker, Jonas"]
[Result "0-1"]
[ECO "A09"]
[WhiteElo "2151"]
[BlackElo "2345"]
[Annotator "NA"]
[PlyCount "66"]
[EventDate "2018.10.27"]
[EventType "swiss"]
[EventCountry "GER"]
[SourceTitle "playchess.com"]
[Source "ChessBase"]
[SourceQuality "1"]
[TimeControl "40/5400+30:1800+30"]

1. Nf3 {[%emt 0:00:00]} d5 {[%emt 0:00:00]} 2. c4 {[%emt 0:00:00]} d4 {[%emt 0:00:00]} 3. b4 {[%emt 0:00:00] A09: Réti Opening: 1 Nf3 d5 2 c4} (3. e3 Nc6 4. b4 dxe3 5. fxe3 e5 6. b5 Nb4 7. Nc3 Bf5 8. e4 Bg4 9. a3 Bxf3 10. gxf3 Nd3+ 11. Bxd3 Qxd3 12. Qe2 {1-0 (30) Iturrizaga Bonelli,E (2636)-Xiong,J (2651) chess.com INT 2018}) 3... g5 {[%emt 0:00:00]} 4. Bb2 {[%emt 0:01:21]} Bg7 {[%emt 0:00:00]} 5. Nxg5 {[%emt 0:00:09]} e5 {[%emt 0:00:20]} 6. Ne4 {[%emt 0:00:07]} f5 {[%emt 0:00:22]} 7. Nc5 {[%emt 0:00:06]} b6 {[%emt 0:00:20]} 8. Qa4+ {[%emt 0:00:08]} Kf7 {[%emt 0:00:11]} 9. Nd3 {[%emt 0:00:06]} Ne7 {[%emt 0:01:33]} 10. f4 $146 {[%emt 0:02:00]} ({Predecessor:} 10. e3 e4 {0-1 (47) Shuvalov,E (2241)-Shukh,N (2435) Moscow 2018}) 10... e4 {[%emt 0:05:27]} 11. Ne5+ {[%emt 0:00:07]} Bxe5 {[%emt 0:03:23]} 12. fxe5 {[%emt 0:00:10]} c5 {[%emt 0:07:08]} 13. e3 {[%emt 0:09:25]} Nbc6 {[%emt 0:12:17]} 14. exd4 {[%emt 0:03:03]} cxd4 {[%emt 0:04:47]} 15. Be2 {[%emt 0:19:42]} Nxe5 {[%emt 0:11:01]} 16. c5 {[%emt 0:00:33]} bxc5 {[%emt 0:01:32]} (16... f4 $17 17. O-O f3 18. gxf3 e3) 17. bxc5 {[%emt 0:00:21]} N7c6 {[%emt 0:01:53]} 18. O-O {[%emt 0:06:53]} (18. Na3 $1 $11 {hält das Gleichgewicht.}) 18... Rb8 {[%emt 0:05:31]} 19. Bb5 {[%emt 0:07:37]} Qd5 {[%emt 0:03:26]} 20. Na3 {[%emt 0:02:09]} Be6 {[%emt 0:11:04]} 21. Qd1 {[%emt 0:15:11]} h5 {[%emt 0:04:54]} 22. Rc1 {[%emt 0:08:50]} Qxa2 {[%emt 0:06:14]} 23. Qa4 {[%emt 0:03:17]} Qxb2 {[%emt 0:04:05]} (23... Rxb5 $142 24. Qxb5 Rb8) 24. Bxc6 {[%emt 0:00:42]} Nxc6 $2 {[%emt 0:03:54]} (24... Qxd2 $19 25. Kh1 e3) 25. Nc4 {[%emt 0:00:12]} Bxc4 $1 {[%emt 0:06:09]} 26. Qxc4+ $2 {[%emt 0:00:02] [#]} (26. Qxc6 $11 {and White is okay.} Be6 {[#]} 27. Rxf5+ $3 {[%mdl 512]} Bxf5 28. Rf1) 26... Kg7 $1 {[%emt 0:02:09]} 27. Qe6 {[%emt 0:06:05]} Rh6 {[%emt 0:00:50]} 28. Qxf5 {[%emt 0:00:33]} Qxd2 {[%emt 0:00:55]} 29. Qd7+ {[%emt 0:04:06]} (29. Rb1 $142 Rg6 30. Qxe4 Rxb1 31. Rxb1) 29... Kh8 {[%emt 0:00:31]} 30. Rb1 {[%emt 0:00:10]} Rg8 {[%emt 0:01:37]} 31. Rf2 {[%emt 0:00:15]} Qg5 {[%emt 0:00:23]} 32. Rb7 {[%emt 0:01:21]} e3 $19 {[%emt 0:01:06]} (32... Qc1+ $142 33. Rf1 {[#]} Rxg2+ $1 {[%mdl 512]} 34. Kxg2 Rg6+ 35. Kh3 Qxf1+ 36. Kh4 Qf4+ 37. Kh3 Qf3+ 38. Kh4 Rg4+ 39. Kxh5 Qh3#) 33. Re2 {[%emt 0:00:17]} Qg6 {[%emt 0:00:38]} 0-1